[Event "December 19 Early 2023"]
[Site "https://www.chess.com"]
[Date "2023.12.19"]
[Round "4"]
[White "Nan M K Khine Hlyan"]
[Black "Petrova, Irina"]
[Result "0-1"]
[Board "217"]
[TimeControl "180+1"]
[WhiteFideId "13002899"]
[BlackFideId "14124122"]
[WhiteElo "1943"]
[BlackElo "2085"]
[WhiteTeam "MYA"]
[BlackTeam "UKR"]
[WhiteClock "0:00:47"]
[BlackClock "0:01:35"]

1. e4 {[%clk 0:02:58]}  d6 {[%clk 0:03:00]} 2. d4 {[%clk 0:02:57]}  Nf6 {[%clk 0:02:56]} 3. Nc3 {[%clk 0:02:54]}  e5 {[%clk 0:02:54]} 4. dxe5 {[%clk 0:02:53]}  dxe5 {[%clk 0:02:55]} 5. Qxd8+ {[%clk 0:02:51]}  Kxd8 {[%clk 0:02:56]} 6. Nf3 {[%clk 0:02:50]}  Bd6 {[%clk 0:02:54]} 7. Bg5 {[%clk 0:02:49]}  Be6 {[%clk 0:02:52]} 8. O-O-O {[%clk 0:02:47]}  Nd7 {[%clk 0:02:52]} 9. Nb5 {[%clk 0:02:37]}  Ke7 {[%clk 0:02:51]} 10. Nxd6 {[%clk 0:02:33]}  cxd6 {[%clk 0:02:52]} 11. b3 {[%clk 0:02:24]}  h6 {[%clk 0:02:52]} 12. Bxf6+ {[%clk 0:02:21]}  Nxf6 {[%clk 0:02:53]} 13. Nd2 {[%clk 0:02:20]}  Rhc8 {[%clk 0:02:53]} 14. f3 {[%clk 0:02:18]}  d5 {[%clk 0:02:48]} 15. exd5 {[%clk 0:02:15]}  Nxd5 {[%clk 0:02:49]} 16. Kb2 {[%clk 0:02:14]}  a6 {[%clk 0:02:45]} 17. Nc4 {[%clk 0:02:13]}  f6 {[%clk 0:02:40]} 18. Rxd5 {[%clk 0:02:04]}  Bxd5 {[%clk 0:02:39]} 19. Nb6 {[%clk 0:02:03]}  Be6 {[%clk 0:02:37]} 20. Nxa8 {[%clk 0:02:01]}  Rxa8 {[%clk 0:02:38]} 21. Bd3 {[%clk 0:01:59]}  Rd8 {[%clk 0:02:30]} 22. Re1 {[%clk 0:01:57]}  Kf7 {[%clk 0:02:00]} 23. Be4 {[%clk 0:01:51]}  b6 {[%clk 0:01:57]} 24. Bd3 {[%clk 0:01:49]}  a5 {[%clk 0:01:56]} 25. Re4 {[%clk 0:01:48]}  Bf5 {[%clk 0:01:53]} 26. Re3 {[%clk 0:01:48]}  Bxd3 {[%clk 0:01:53]} 27. Rxd3 {[%clk 0:01:46]}  Rxd3 {[%clk 0:01:53]} 28. cxd3 {[%clk 0:01:46]}  Ke6 {[%clk 0:01:54]} 29. Kc3 {[%clk 0:01:46]}  Kd5 {[%clk 0:01:54]} 30. a4 {[%clk 0:01:44]}  Kc5 {[%clk 0:01:53]} 31. g3 {[%clk 0:01:41]}  f5 {[%clk 0:01:50]} 32. h4 {[%clk 0:01:35]}  g5 {[%clk 0:01:49]} 33. hxg5 {[%clk 0:01:22]}  hxg5 {[%clk 0:01:50]} 34. b4+ {[%clk 0:00:58]}  axb4+ {[%clk 0:01:50]} 35. Kb3 {[%clk 0:00:58]}  Kd4 {[%clk 0:01:33]} 36. Kxb4 {[%clk 0:00:57]}  Kxd3 {[%clk 0:01:34]} 37. Kb5 {[%clk 0:00:57]}  e4 {[%clk 0:01:34]} 38. fxe4 {[%clk 0:00:52]}  fxe4 {[%clk 0:01:35]} 39. Kxb6 {[%clk 0:00:51]}  e3 {[%clk 0:01:35]} 40. a5 {[%clk 0:00:52]}  e2 {[%clk 0:01:35]} 41. a6 {[%clk 0:00:52]}  e1=Q {[%clk 0:01:36]} 42. a7 {[%clk 0:00:47]}  Qe4 {[%clk 0:01:35]} 0-1

[Event "December 19 Early 2023"]
[Site "https://www.chess.com"]
[Date "2023.12.19"]
[Round "4"]
[White "Gulamirian, Korun"]
[Black "Caruana, Fabiano"]
[Result "0-1"]
[Board "218"]
[TimeControl "180+1"]
[WhiteFideId "4144899"]
[BlackFideId "2020009"]
[WhiteElo "1621"]
[BlackElo "2815"]
[WhiteTeam "RUS"]
[BlackTeam "USA"]
[WhiteClock "0:00:00"]
[BlackClock "0:02:32"]

1. e4 {[%clk 0:02:55]}  h6 {[%clk 0:02:59]} 2. d4 {[%clk 0:02:53]}  d6 {[%clk 0:02:58]} 3. c4 {[%clk 0:02:50]}  Nf6 {[%clk 0:02:58]} 4. Nc3 {[%clk 0:02:50]}  e5 {[%clk 0:02:58]} 5. dxe5 {[%clk 0:02:48]}  dxe5 {[%clk 0:02:58]} 6. Qxd8+ {[%clk 0:02:46]}  Kxd8 {[%clk 0:02:59]} 7. Nf3 {[%clk 0:02:35]}  Nc6 {[%clk 0:02:59]} 8. Be2 {[%clk 0:02:32]}  Bb4 {[%clk 0:02:58]} 9. O-O {[%clk 0:02:31]}  Bxc3 {[%clk 0:02:58]} 10. bxc3 {[%clk 0:02:29]}  Nxe4 {[%clk 0:02:58]} 11. Rd1+ {[%clk 0:02:22]}  Ke8 {[%clk 0:02:57]} 12. Bb2 {[%clk 0:02:20]}  Be6 {[%clk 0:02:56]} 13. c5 {[%clk 0:02:17]}  Nxc5 {[%clk 0:02:55]} 14. c4 {[%clk 0:02:12]}  f6 {[%clk 0:02:55]} 15. Ba3 {[%clk 0:02:03]}  Na4 {[%clk 0:02:52]} 16. Rac1 {[%clk 0:01:50]}  Nb6 {[%clk 0:02:42]} 17. Nd2 {[%clk 0:01:43]}  Kf7 {[%clk 0:02:38]} 18. Nb3 {[%clk 0:01:38]}  Rad8 {[%clk 0:02:37]} 19. h3 {[%clk 0:01:32]}  Rxd1+ {[%clk 0:02:33]} 20. Rxd1 {[%clk 0:01:26]}  Rd8 {[%clk 0:02:33]} 21. Rxd8 {[%clk 0:01:21]}  Nxd8 {[%clk 0:02:34]} 22. Nc5 {[%clk 0:01:19]}  Bxc4 {[%clk 0:02:32]} 23. Bh5+ {[%clk 0:01:01]}  g6 {[%clk 0:02:32]} 24. Bf3 {[%clk 0:01:00]}  Bd5 {[%clk 0:02:30]} 25. Bxd5+ {[%clk 0:00:56]}  Nxd5 {[%clk 0:02:31]} 26. f3 {[%clk 0:00:46]}  b6 {[%clk 0:02:31]} 27. Nd3 {[%clk 0:00:31]}  c5 {[%clk 0:02:31]} 28. Nb2 {[%clk 0:00:25]}  Nc6 {[%clk 0:02:31]} 29. Nc4 {[%clk 0:00:22]}  Ke6 {[%clk 0:02:32]} 30. Kf2 {[%clk 0:00:19]}  b5 {[%clk 0:02:32]} 31. Nd2 {[%clk 0:00:14]}  c4 {[%clk 0:02:33]} 32. Ke2 {[%clk 0:00:07]}  Nd4+ {[%clk 0:02:32]} 33. Kd1 {[%clk 0:00:06]}  Nc3+ {[%clk 0:02:32]} 34. Kc1 {[%clk 0:00:02]}  Nxa2+ {[%clk 0:02:32]} 35. Kb2 {[%clk 0:00:00]}  c3+ {[%clk 0:02:32]} 0-1

[Event "December 19 Early 2023"]
[Site "https://www.chess.com"]
[Date "2023.12.19"]
[Round "4"]
[White "Clawitter, Craig"]
[Black "Tikhonov, Viacheslav"]
[Result "1-0"]
[Board "220"]
[TimeControl "180+1"]
[WhiteFideId "2023105"]
[BlackFideId "44196407"]
[WhiteElo "2234"]
[BlackElo "2209"]
[WhiteTeam "USA"]
[BlackTeam "RUS"]
[WhiteClock "0:00:21"]
[BlackClock "0:00:05"]

1. e4 {[%clk 0:03:00]}  c5 {[%clk 0:03:00]} 2. Nf3 {[%clk 0:03:00]}  g6 {[%clk 0:03:00]} 3. d4 {[%clk 0:03:01]}  cxd4 {[%clk 0:03:00]} 4. Nxd4 {[%clk 0:03:01]}  Nc6 {[%clk 0:03:01]} 5. Nc3 {[%clk 0:03:02]}  Bg7 {[%clk 0:03:01]} 6. Be3 {[%clk 0:03:02]}  Nf6 {[%clk 0:03:01]} 7. Bc4 {[%clk 0:03:02]}  Qa5 {[%clk 0:03:02]} 8. O-O {[%clk 0:03:02]}  O-O {[%clk 0:03:01]} 9. Bb3 {[%clk 0:03:00]}  d6 {[%clk 0:03:01]} 10. h3 {[%clk 0:03:01]}  Bd7 {[%clk 0:03:01]} 11. Re1 {[%clk 0:03:01]}  Nxd4 {[%clk 0:03:02]} 12. Bxd4 {[%clk 0:03:02]}  Bc6 {[%clk 0:03:02]} 13. Nd5 {[%clk 0:03:02]}  Qd8 {[%clk 0:02:45]} 14. Nxf6+ {[%clk 0:02:54]}  exf6 {[%clk 0:02:46]} 15. Bc3 {[%clk 0:02:38]}  Qe7 {[%clk 0:02:33]} 16. Qd4 {[%clk 0:02:12]}  b6 {[%clk 0:02:19]} 17. Rad1 {[%clk 0:02:06]}  Rfd8 {[%clk 0:02:19]} 18. Bb4 {[%clk 0:01:38]}  f5 {[%clk 0:01:01]} 19. Bxd6 {[%clk 0:01:38]}  Qg5 {[%clk 0:00:38]} 20. Qc4 {[%clk 0:01:25]}  Bxe4 {[%clk 0:00:22]} 21. Qxf7+ {[%clk 0:01:20]}  Kh8 {[%clk 0:00:22]} 22. Bg3 {[%clk 0:00:43]}  Qf6 {[%clk 0:00:10]} 23. c3 {[%clk 0:00:26]}  Qxf7 {[%clk 0:00:06]} 24. Bxf7 {[%clk 0:00:26]}  Bf6 {[%clk 0:00:04]} 25. f3 {[%clk 0:00:25]}  Bc2 {[%clk 0:00:04]} 26. Rxd8+ {[%clk 0:00:24]}  Rxd8 {[%clk 0:00:05]} 27. Re8+ {[%clk 0:00:19]}  Rxe8 {[%clk 0:00:05]} 28. Bxe8 {[%clk 0:00:20]}  Bb1 {[%clk 0:00:06]} 29. Bf7 {[%clk 0:00:20]}  Kg7 {[%clk 0:00:05]} 30. Bb3 {[%clk 0:00:20]}  g5 {[%clk 0:00:05]} 31. Bf2 {[%clk 0:00:19]}  f4 {[%clk 0:00:05]} 32. Kf1 {[%clk 0:00:19]}  Kg6 {[%clk 0:00:04]} 33. Ke2 {[%clk 0:00:19]}  Kf5 {[%clk 0:00:02]} 34. Kd2 {[%clk 0:00:19]}  h5 {[%clk 0:00:02]} 35. Bc2+ {[%clk 0:00:20]}  Bxc2 {[%clk 0:00:03]} 36. Kxc2 {[%clk 0:00:20]}  Ke6 {[%clk 0:00:02]} 37. Kd3 {[%clk 0:00:21]}  Kd5 {[%clk 0:00:03]} 38. Bd4 {[%clk 0:00:21]}  Be7 {[%clk 0:00:03]} 39. c4+ {[%clk 0:00:20]}  Ke6 {[%clk 0:00:02]} 40. Ke4 {[%clk 0:00:20]}  Bd8 {[%clk 0:00:02]} 41. b4 {[%clk 0:00:20]}  Be7 {[%clk 0:00:02]} 42. c5 {[%clk 0:00:21]}  bxc5 {[%clk 0:00:02]} 43. Bxc5 {[%clk 0:00:22]}  Bf6 {[%clk 0:00:01]} 44. Bxa7 {[%clk 0:00:21]}  Bc3 {[%clk 0:00:01]} 45. Bc5 {[%clk 0:00:21]}  h4 {[%clk 0:00:01]} 46. a4 {[%clk 0:00:21]}  Bb2 {[%clk 0:00:01]} 47. a5 {[%clk 0:00:21]}  Kd7 {[%clk 0:00:02]} 48. Kd5 {[%clk 0:00:21]}  Kc7 {[%clk 0:00:02]} 49. b5 {[%clk 0:00:21]}  Kb7 {[%clk 0:00:02]} 50. a6+ {[%clk 0:00:21]}  Ka8 {[%clk 0:00:02]} 51. b6 {[%clk 0:00:21]}  g4 {[%clk 0:00:02]} 52. b7+ {[%clk 0:00:21]}  Kb8 {[%clk 0:00:02]} 53. Bd6+ {[%clk 0:00:21]}  Ka7 {[%clk 0:00:03]} 54. b8=Q+ {[%clk 0:00:22]}  Kxa6 {[%clk 0:00:04]} 55. Bc5 {[%clk 0:00:21]}  gxh3 {[%clk 0:00:05]} 56. Qb6# {[%clk 0:00:21]} 1-0

[Event "December 19 Early 2023"]
[Site "https://www.chess.com"]
[Date "2023.12.19"]
[Round "4"]
[White "Vasli, Aref"]
[Black "Namitbir Singh Walia"]
[Result "1-0"]
[Board "222"]
[TimeControl "180+1"]
[WhiteFideId "417521"]
[BlackFideId "35071068"]
[WhiteElo "2274"]
[BlackElo "2239"]
[WhiteTeam "IRI"]
[BlackTeam "IND"]
[WhiteClock "0:00:26"]
[BlackClock "0:00:13"]

1. e4 {[%clk 0:03:00]}  c5 {[%clk 0:02:59]} 2. Nf3 {[%clk 0:03:00]}  g6 {[%clk 0:02:57]} 3. d3 {[%clk 0:02:53]}  Bg7 {[%clk 0:02:56]} 4. g3 {[%clk 0:02:53]}  e6 {[%clk 0:02:53]} 5. Bg2 {[%clk 0:02:53]}  Ne7 {[%clk 0:02:53]} 6. O-O {[%clk 0:02:51]}  O-O {[%clk 0:02:54]} 7. h4 {[%clk 0:02:48]}  d5 {[%clk 0:02:54]} 8. h5 {[%clk 0:02:46]}  Nbc6 {[%clk 0:02:50]} 9. c3 {[%clk 0:02:44]}  b6 {[%clk 0:02:46]} 10. Re1 {[%clk 0:02:38]}  Ba6 {[%clk 0:02:45]} 11. e5 {[%clk 0:02:33]}  d4 {[%clk 0:02:32]} 12. c4 {[%clk 0:02:31]}  Qc7 {[%clk 0:02:28]} 13. Bf4 {[%clk 0:02:14]}  Bb7 {[%clk 0:02:19]} 14. Nbd2 {[%clk 0:02:12]}  h6 {[%clk 0:02:05]} 15. g4 {[%clk 0:02:01]}  g5 {[%clk 0:02:02]} 16. Bg3 {[%clk 0:02:01]}  Kh8 {[%clk 0:01:55]} 17. Ne4 {[%clk 0:02:00]}  Ng8 {[%clk 0:01:30]} 18. Qe2 {[%clk 0:01:44]}  Nxe5 {[%clk 0:01:12]} 19. Nexg5 {[%clk 0:01:33]}  Nxf3+ {[%clk 0:01:05]} 20. Nxf3 {[%clk 0:01:32]}  Qe7 {[%clk 0:01:00]} 21. Ne5 {[%clk 0:01:20]}  Rae8 {[%clk 0:00:53]} 22. Be4 {[%clk 0:01:05]}  Bxe4 {[%clk 0:00:49]} 23. Qxe4 {[%clk 0:01:05]}  Nf6 {[%clk 0:00:39]} 24. Qc6 {[%clk 0:01:03]}  Rc8 {[%clk 0:00:35]} 25. Qf3 {[%clk 0:01:02]}  Nh7 {[%clk 0:00:33]} 26. Kg2 {[%clk 0:00:59]}  Ng5 {[%clk 0:00:31]} 27. Qe2 {[%clk 0:00:59]}  Kg8 {[%clk 0:00:30]} 28. Bh4 {[%clk 0:00:47]}  Qb7+ {[%clk 0:00:30]} 29. Nf3 {[%clk 0:00:45]}  f5 {[%clk 0:00:21]} 30. Bxg5 {[%clk 0:00:40]}  fxg4 {[%clk 0:00:17]} 31. Qxe6+ {[%clk 0:00:40]}  Kh8 {[%clk 0:00:18]} 32. Qxg4 {[%clk 0:00:40]}  hxg5 {[%clk 0:00:18]} 33. h6 {[%clk 0:00:29]}  Bxh6 {[%clk 0:00:15]} 34. Rh1 {[%clk 0:00:26]}  Kg7 {[%clk 0:00:16]} 35. Rxh6 {[%clk 0:00:25]}  Kxh6 {[%clk 0:00:17]} 36. Qxg5+ {[%clk 0:00:26]}  Kh7 {[%clk 0:00:13]} 37. Rh1# {[%clk 0:00:26]} 1-0

[Event "December 19 Early 2023"]
[Site "https://www.chess.com"]
[Date "2023.12.19"]
[Round "4"]
[White "Marchesich, Giovanni"]
[Black "Von Buelow, Georg"]
[Result "0-1"]
[Board "223"]
[TimeControl "180+1"]
[WhiteFideId "2824790"]
[BlackFideId "4620658"]
[WhiteElo "2198"]
[BlackElo "2213"]
[WhiteTeam "ITA"]
[BlackTeam "GER"]
[WhiteClock "0:00:32"]
[BlackClock "0:01:34"]

1. e4 {[%clk 0:03:00]}  c5 {[%clk 0:02:59]} 2. Nf3 {[%clk 0:03:01]}  d6 {[%clk 0:03:00]} 3. d4 {[%clk 0:03:01]}  cxd4 {[%clk 0:03:00]} 4. Nxd4 {[%clk 0:03:02]}  Nf6 {[%clk 0:03:01]} 5. Nc3 {[%clk 0:03:03]}  a6 {[%clk 0:03:01]} 6. Bc4 {[%clk 0:03:03]}  e6 {[%clk 0:03:02]} 7. Bb3 {[%clk 0:03:04]}  Be7 {[%clk 0:03:02]} 8. g4 {[%clk 0:03:04]}  O-O {[%clk 0:02:55]} 9. g5 {[%clk 0:03:04]}  Nfd7 {[%clk 0:02:56]} 10. Rg1 {[%clk 0:03:04]}  Ne5 {[%clk 0:02:55]} 11. Qh5 {[%clk 0:03:03]}  g6 {[%clk 0:02:50]} 12. Qe2 {[%clk 0:02:41]}  Nbc6 {[%clk 0:02:39]} 13. Be3 {[%clk 0:02:39]}  Bd7 {[%clk 0:02:34]} 14. f4 {[%clk 0:02:38]}  Nxd4 {[%clk 0:02:33]} 15. Bxd4 {[%clk 0:02:38]}  Nc6 {[%clk 0:02:34]} 16. Be3 {[%clk 0:02:39]}  b5 {[%clk 0:02:18]} 17. O-O-O {[%clk 0:02:38]}  b4 {[%clk 0:02:18]} 18. Na4 {[%clk 0:02:38]}  Rb8 {[%clk 0:02:18]} 19. Rg3 {[%clk 0:02:29]}  Na5 {[%clk 0:02:16]} 20. Rh3 {[%clk 0:02:26]}  Re8 {[%clk 0:02:10]} 21. Qf2 {[%clk 0:02:24]}  Nxb3+ {[%clk 0:02:01]} 22. axb3 {[%clk 0:02:22]}  Bxa4 {[%clk 0:01:58]} 23. bxa4 {[%clk 0:02:17]}  b3 {[%clk 0:01:58]} 24. c3 {[%clk 0:02:07]}  Qa5 {[%clk 0:01:50]} 25. Bd4 {[%clk 0:01:43]}  e5 {[%clk 0:01:47]} 26. fxe5 {[%clk 0:01:18]}  dxe5 {[%clk 0:01:48]} 27. Rf1 {[%clk 0:01:18]}  Rf8 {[%clk 0:01:48]} 28. Rxh7 {[%clk 0:00:42]}  Kxh7 {[%clk 0:01:36]} 29. Qh4+ {[%clk 0:00:42]}  Kg8 {[%clk 0:01:37]} 30. Rf3 {[%clk 0:00:32]}  exd4 {[%clk 0:01:34]} 0-1

[Event "December 19 Early 2023"]
[Site "https://www.chess.com"]
[Date "2023.12.19"]
[Round "4"]
[White "Palmer, Reegan"]
[Black "Bach Ngoc Thuy Duong"]
[Result "1-0"]
[Board "224"]
[TimeControl "180+1"]
[WhiteFideId "14322145"]
[BlackFideId "12408956"]
[WhiteElo "1814"]
[BlackElo "1970"]
[WhiteTeam "RSA"]
[BlackTeam "VIE"]
[WhiteClock "0:00:34"]
[BlackClock "0:00:29"]

1. e4 {[%clk 0:03:00]}  c5 {[%clk 0:02:54]} 2. Nf3 {[%clk 0:02:58]}  d6 {[%clk 0:02:54]} 3. Bb5+ {[%clk 0:02:57]}  Nc6 {[%clk 0:02:53]} 4. a4 {[%clk 0:02:56]}  Bd7 {[%clk 0:02:52]} 5. O-O {[%clk 0:02:48]}  Nf6 {[%clk 0:02:52]} 6. d3 {[%clk 0:02:46]}  e6 {[%clk 0:02:51]} 7. c3 {[%clk 0:02:44]}  Be7 {[%clk 0:02:49]} 8. Qe2 {[%clk 0:02:45]}  a6 {[%clk 0:02:46]} 9. Bxc6 {[%clk 0:02:45]}  Bxc6 {[%clk 0:02:46]} 10. Nbd2 {[%clk 0:02:43]}  O-O {[%clk 0:02:45]} 11. a5 {[%clk 0:02:41]}  d5 {[%clk 0:02:39]} 12. e5 {[%clk 0:02:32]}  Nd7 {[%clk 0:02:38]} 13. d4 {[%clk 0:02:32]}  Bb5 {[%clk 0:02:35]} 14. Qe3 {[%clk 0:02:22]}  Bxf1 {[%clk 0:02:34]} 15. Nxf1 {[%clk 0:02:23]}  Rc8 {[%clk 0:02:25]} 16. Ng3 {[%clk 0:02:16]}  Re8 {[%clk 0:02:05]} 17. Bd2 {[%clk 0:02:12]}  Nf8 {[%clk 0:02:03]} 18. dxc5 {[%clk 0:01:56]}  Bxc5 {[%clk 0:02:00]} 19. Qf4 {[%clk 0:01:53]}  Ng6 {[%clk 0:01:59]} 20. Qg4 {[%clk 0:01:53]}  f5 {[%clk 0:01:34]} 21. exf6 {[%clk 0:01:48]}  Qxf6 {[%clk 0:01:34]} 22. Bg5 {[%clk 0:01:45]}  Qf7 {[%clk 0:01:34]} 23. h4 {[%clk 0:01:43]}  e5 {[%clk 0:01:32]} 24. h5 {[%clk 0:01:34]}  Nf8 {[%clk 0:01:10]} 25. Rf1 {[%clk 0:01:11]}  e4 {[%clk 0:01:08]} 26. Ne5 {[%clk 0:01:06]}  Qe6 {[%clk 0:01:07]} 27. Nf5 {[%clk 0:00:35]}  Qxe5 {[%clk 0:00:51]} 28. Nh6+ {[%clk 0:00:35]}  Kh8 {[%clk 0:00:37]} 29. Nf7+ {[%clk 0:00:33]}  Kg8 {[%clk 0:00:29]} 30. Nxe5 {[%clk 0:00:34]} 1-0

[Event "December 19 Early 2023"]
[Site "https://www.chess.com"]
[Date "2023.12.19"]
[Round "4"]
[White "Kuchava, Ana"]
[Black "Mouhamad, Joachim"]
[Result "0-1"]
[Board "225"]
[TimeControl "180+1"]
[WhiteFideId "13605348"]
[BlackFideId "656410"]
[WhiteElo "1950"]
[BlackElo "2125"]
[WhiteTeam "GEO"]
[BlackTeam "FRA"]
[WhiteClock "0:00:00"]
[BlackClock "0:00:28"]

1. d4 {[%clk 0:03:00]}  d5 {[%clk 0:02:58]} 2. Nf3 {[%clk 0:03:00]}  Nf6 {[%clk 0:02:57]} 3. c4 {[%clk 0:02:58]}  dxc4 {[%clk 0:02:56]} 4. e3 {[%clk 0:02:56]}  e6 {[%clk 0:02:54]} 5. Bxc4 {[%clk 0:02:51]}  c5 {[%clk 0:02:54]} 6. O-O {[%clk 0:02:48]}  a6 {[%clk 0:02:53]} 7. a4 {[%clk 0:02:46]}  Nc6 {[%clk 0:02:39]} 8. Nc3 {[%clk 0:02:43]}  Be7 {[%clk 0:02:28]} 9. Qd3 {[%clk 0:02:38]}  cxd4 {[%clk 0:02:15]} 10. exd4 {[%clk 0:02:37]}  Nb4 {[%clk 0:02:13]} 11. Qe2 {[%clk 0:02:36]}  O-O {[%clk 0:02:09]} 12. Bg5 {[%clk 0:02:34]}  Bd7 {[%clk 0:02:03]} 13. Ne5 {[%clk 0:02:29]}  Bc6 {[%clk 0:01:48]} 14. Rad1 {[%clk 0:02:17]}  Rc8 {[%clk 0:01:33]} 15. Nxf7 {[%clk 0:01:57]}  Rxf7 {[%clk 0:01:28]} 16. Bxe6 {[%clk 0:01:48]}  Be8 {[%clk 0:01:20]} 17. Rfe1 {[%clk 0:01:36]}  Rc7 {[%clk 0:01:10]} 18. d5 {[%clk 0:01:08]}  Bd6 {[%clk 0:01:10]} 19. Ne4 {[%clk 0:00:59]}  Kh8 {[%clk 0:01:02]} 20. Bxf7 {[%clk 0:00:36]}  Bxf7 {[%clk 0:01:01]} 21. Nxd6 {[%clk 0:00:23]}  Qxd6 {[%clk 0:01:01]} 22. g3 {[%clk 0:00:21]}  Nbxd5 {[%clk 0:00:54]} 23. Bf4 {[%clk 0:00:12]}  Nxf4 {[%clk 0:00:51]} 24. Rxd6 {[%clk 0:00:11]}  Nxe2+ {[%clk 0:00:51]} 25. Rxe2 {[%clk 0:00:11]}  h6 {[%clk 0:00:39]} 26. h4 {[%clk 0:00:11]}  Bd5 {[%clk 0:00:35]} 27. Rd8+ {[%clk 0:00:08]}  Kh7 {[%clk 0:00:35]} 28. Kf1 {[%clk 0:00:06]}  Rc1+ {[%clk 0:00:28]} 29. Re1 {[%clk 0:00:00]}  Bc4+ {[%clk 0:00:28]} 0-1

[Event "December 19 Early 2023"]
[Site "https://www.chess.com"]
[Date "2023.12.19"]
[Round "4"]
[White "Wael Sabry, Mina"]
[Black "Vila Dupla, Aurelio"]
[Result "1-0"]
[Board "226"]
[TimeControl "180+1"]
[WhiteFideId "10670173"]
[BlackFideId "2203383"]
[WhiteElo "1861"]
[BlackElo "2009"]
[WhiteTeam "EGY"]
[BlackTeam "ESP"]
[WhiteClock "0:01:44"]
[BlackClock "0:00:01"]

1. Nf3 {[%clk 0:02:56]}  Nf6 {[%clk 0:02:59]} 2. g3 {[%clk 0:02:56]}  g6 {[%clk 0:02:59]} 3. Bg2 {[%clk 0:02:55]}  Bg7 {[%clk 0:02:59]} 4. O-O {[%clk 0:02:53]}  O-O {[%clk 0:02:59]} 5. d4 {[%clk 0:02:53]}  d5 {[%clk 0:02:59]} 6. c4 {[%clk 0:02:53]}  c6 {[%clk 0:02:59]} 7. cxd5 {[%clk 0:02:53]}  cxd5 {[%clk 0:03:00]} 8. Nc3 {[%clk 0:02:54]}  Ne4 {[%clk 0:03:00]} 9. Ng5 {[%clk 0:02:49]}  Nxc3 {[%clk 0:02:58]} 10. bxc3 {[%clk 0:02:48]}  Nc6 {[%clk 0:02:58]} 11. e4 {[%clk 0:02:45]}  dxe4 {[%clk 0:02:48]} 12. Nxe4 {[%clk 0:02:44]}  e5 {[%clk 0:02:30]} 13. Ba3 {[%clk 0:02:43]}  exd4 {[%clk 0:02:24]} 14. Bxf8 {[%clk 0:02:42]}  Qxf8 {[%clk 0:02:24]} 15. cxd4 {[%clk 0:02:42]}  Nxd4 {[%clk 0:02:10]} 16. Rb1 {[%clk 0:02:41]}  Rb8 {[%clk 0:02:08]} 17. Qa4 {[%clk 0:02:30]}  a6 {[%clk 0:01:40]} 18. Rbd1 {[%clk 0:02:16]}  Ne2+ {[%clk 0:01:36]} 19. Kh1 {[%clk 0:02:16]}  Bf5 {[%clk 0:01:28]} 20. Qc4 {[%clk 0:02:15]}  Bxe4 {[%clk 0:01:22]} 21. Bxe4 {[%clk 0:02:14]}  Nc3 {[%clk 0:01:22]} 22. Rd7 {[%clk 0:02:13]}  b5 {[%clk 0:01:10]} 23. Qd3 {[%clk 0:02:08]}  Nxe4 {[%clk 0:01:04]} 24. Qxe4 {[%clk 0:02:07]}  Qa3 {[%clk 0:00:55]} 25. Rfd1 {[%clk 0:01:59]}  h6 {[%clk 0:00:22]} 26. R1d3 {[%clk 0:01:53]}  Qc1+ {[%clk 0:00:20]} 27. Kg2 {[%clk 0:01:53]}  Qc5 {[%clk 0:00:12]} 28. R3d5 {[%clk 0:01:47]}  Qa3 {[%clk 0:00:06]} 29. Qf3 {[%clk 0:01:44]}  Qxa2 {[%clk 0:00:01]} 30. Qxf7+ {[%clk 0:01:44]} 1-0

[Event "December 19 Early 2023"]
[Site "https://www.chess.com"]
[Date "2023.12.19"]
[Round "4"]
[White "Igel2023"]
[Black "Can, Melih Kaan"]
[Result "1/2-1/2"]
[Board "227"]
[TimeControl "180+1"]
[BlackFideId "6317383"]
[WhiteElo "2205"]
[BlackElo "2022"]
[BlackTeam "TUR"]
[WhiteClock "0:00:14"]
[BlackClock "0:00:16"]

1. e4 {[%clk 0:03:00]}  c5 {[%clk 0:02:59]} 2. Nf3 {[%clk 0:03:00]}  a6 {[%clk 0:02:59]} 3. g3 {[%clk 0:02:59]}  Nf6 {[%clk 0:02:59]} 4. e5 {[%clk 0:02:54]}  Nd5 {[%clk 0:02:58]} 5. Bg2 {[%clk 0:02:54]}  e6 {[%clk 0:02:55]} 6. O-O {[%clk 0:02:54]}  Nc6 {[%clk 0:02:55]} 7. Re1 {[%clk 0:02:50]}  Be7 {[%clk 0:02:53]} 8. d4 {[%clk 0:02:48]}  cxd4 {[%clk 0:02:52]} 9. Nxd4 {[%clk 0:02:49]}  Qb6 {[%clk 0:02:51]} 10. Nb3 {[%clk 0:02:42]}  Nc7 {[%clk 0:02:42]} 11. Qg4 {[%clk 0:02:37]}  O-O {[%clk 0:02:27]} 12. Bh6 {[%clk 0:02:35]}  Ne8 {[%clk 0:02:27]} 13. Nc3 {[%clk 0:02:32]}  Kh8 {[%clk 0:02:25]} 14. Be3 {[%clk 0:02:29]}  Nxe5 {[%clk 0:02:11]} 15. Qxg7+ {[%clk 0:02:05]}  Nxg7 {[%clk 0:02:00]} 16. Bxb6 {[%clk 0:02:06]}  Nc4 {[%clk 0:01:59]} 17. Na4 {[%clk 0:01:54]}  d5 {[%clk 0:01:39]} 18. Bd4 {[%clk 0:01:37]}  Bd7 {[%clk 0:01:33]} 19. Nb6 {[%clk 0:01:33]}  Nxb6 {[%clk 0:01:32]} 20. Bxb6 {[%clk 0:01:34]}  Rac8 {[%clk 0:01:30]} 21. c3 {[%clk 0:01:33]}  Bf6 {[%clk 0:01:24]} 22. Bd4 {[%clk 0:01:32]}  Bxd4 {[%clk 0:01:23]} 23. Nxd4 {[%clk 0:01:33]}  Rc4 {[%clk 0:01:14]} 24. f4 {[%clk 0:01:31]}  Rfc8 {[%clk 0:01:07]} 25. g4 {[%clk 0:01:29]}  b5 {[%clk 0:01:06]} 26. a3 {[%clk 0:01:27]}  a5 {[%clk 0:01:05]} 27. Bf1 {[%clk 0:01:19]}  R4c5 {[%clk 0:01:02]} 28. Nb3 {[%clk 0:01:17]}  Rc4 {[%clk 0:00:49]} 29. Bxc4 {[%clk 0:01:15]}  Rxc4 {[%clk 0:00:50]} 30. Nd4 {[%clk 0:01:09]}  Ne8 {[%clk 0:00:38]} 31. f5 {[%clk 0:01:04]}  Nf6 {[%clk 0:00:37]} 32. fxe6 {[%clk 0:01:03]}  fxe6 {[%clk 0:00:38]} 33. Nxe6 {[%clk 0:01:00]}  Rxg4+ {[%clk 0:00:38]} 34. Kh1 {[%clk 0:00:47]}  Ne4 {[%clk 0:00:38]} 35. Rxe4 {[%clk 0:00:28]}  dxe4 {[%clk 0:00:37]} 36. Nd4 {[%clk 0:00:28]}  Bc8 {[%clk 0:00:30]} 37. Rg1 {[%clk 0:00:27]}  Rxg1+ {[%clk 0:00:28]} 38. Kxg1 {[%clk 0:00:27]}  Bd7 {[%clk 0:00:21]} 39. Kf2 {[%clk 0:00:27]}  Kg7 {[%clk 0:00:17]} 40. Ke3 {[%clk 0:00:27]}  Kf6 {[%clk 0:00:17]} 41. Kxe4 {[%clk 0:00:27]}  Kg5 {[%clk 0:00:17]} 42. b3 {[%clk 0:00:14]}  Kg4 {[%clk 0:00:16]} 43. c4 {[%clk 0:00:15]}  bxc4 {[%clk 0:00:15]} 44. bxc4 {[%clk 0:00:15]}  Kh4 {[%clk 0:00:16]} 45. c5 {[%clk 0:00:14]}  Kh3 {[%clk 0:00:16]} 46. c6 {[%clk 0:00:15]}  Bc8 {[%clk 0:00:16]} 47. Nf3 {[%clk 0:00:13]}  h5 {[%clk 0:00:15]} 48. Kf4 {[%clk 0:00:13]}  Kg2 {[%clk 0:00:14]} 49. Nh4+ {[%clk 0:00:10]}  Kxh2 {[%clk 0:00:14]} 50. Kg5 {[%clk 0:00:11]}  Kh3 {[%clk 0:00:13]} 51. Kxh5 {[%clk 0:00:10]}  a4 {[%clk 0:00:14]} 52. Kg5 {[%clk 0:00:11]}  Kg3 {[%clk 0:00:14]} 53. Nf5+ {[%clk 0:00:11]}  Kf3 {[%clk 0:00:14]} 54. Nd6 {[%clk 0:00:11]}  Bh3 {[%clk 0:00:14]} 55. c7 {[%clk 0:00:12]}  Ke3 {[%clk 0:00:14]} 56. c8=Q {[%clk 0:00:13]}  Bxc8 {[%clk 0:00:14]} 57. Nxc8 {[%clk 0:00:14]}  Kd3 {[%clk 0:00:15]} 58. Nb6 {[%clk 0:00:14]}  Kc3 {[%clk 0:00:15]} 59. Nxa4+ {[%clk 0:00:15]}  Kb3 {[%clk 0:00:15]} 60. Nc5+ {[%clk 0:00:14]}  Kxa3 {[%clk 0:00:16]} 1/2-1/2